bitfinex/quotes_SOLUSD_20240626
["timestamp","ask_amount","ask_price","bid_price","bid_amount"]
[1719364956465,7.2523,137.89,137.86,6.3524]
[1719364956990,18.1268,137.92,137.84,15.9309]
[1719364957192,20.0,137.91,137.84,15.9309]
[1719364957489,18.1311,137.89,137.8,6.3916]
[1719364957669,7.2557,137.83,137.8,6.3916]
[1719364957990,7.2549,137.84,137.8,6.3916]
[1719364958188,7.2548,137.84,137.8,6.3916]
[1719364958502,18.1336,137.87,137.8,6.3916]
[1719364958676,7.2543,137.85,137.8,6.3916]
[1719364958879,36.3809,137.91,137.8,6.3916]
[1719364959080,20.0,137.91,137.81,0.34]
[1719364959289,18.1257,137.93,137.81,0.34]
[1719364959290,7.2521,137.89,137.83,7.2549]
[1719364959472,7.2512,137.91,137.85,7.2541]
[1719364959680,7.2512,137.91,137.86,0.43175381]
[1719364959868,7.2512,137.91,137.86,16.68735381]
[1719364960189,7.2517,137.9,137.86,16.68735381]
[1719364960397,7.2517,137.9,137.86,16.2556]
[1719364960968,7.2521,137.89,137.86,16.2556]
[1719364961383,18.1242,137.94,137.86,16.2556]
[1719364961591,7.2515,137.91,137.86,16.2556]
[1719364962384,7.2517,137.9,137.86,16.2556]
[1719364962692,7.2512,137.91,137.86,16.2556]
[1719364963188,18.1268,137.92,137.86,16.2556]
[1719364963393,7.2527,137.88,137.86,16.2556]
[1719364963691,7.2523,137.89,137.86,16.2556]
[1719364963883,18.1268,137.92,137.86,16.2556]
[1719364964383,7.2528,137.88,137.86,16.2556]
[1719364965103,7.2522,137.89,137.86,16.2556]
[1719364965791,18.1268,137.92,137.86,16.2556]
[1719364965969,7.2532,137.87,137.86,16.2556]
[1719364966176,18.1268,137.92,137.86,16.2556]
[1719364966379,7.2528,137.88,137.86,16.2556]
[1719364966868,7.2522,137.89,137.86,16.2556]
[1719364967074,18.1268,137.92,137.86,16.2556]
[1719364967075,7.2517,137.9,137.86,16.2556]
[1719364967393,15.93543283,137.96,137.86,16.2556]
[1719364967394,18.1234,137.95,137.86,16.2556]
[1719364967592,7.2515,137.91,137.86,16.2556]
[1719364967802,7.2516,137.9,137.86,16.2556]
[1719364970297,7.56565124,137.96,137.9,7.2511]
[1719364970518,255.2,137.99,137.9,18.1284]
[1719364970680,7.2487,137.96,137.91,0.17]
[1719364970881,7.2481,137.97,137.91,8.52518247]
[1719364971302,18.1169,138.0,137.9,18.1284]
[1719364971303,7.2495,137.94,137.9,18.1284]
[1719364971478,7.249,137.95,137.9,18.1284]
[1719364971679,18.1169,138.0,137.9,25.3799]
[1719364971897,7.249,137.95,137.9,25.3799]
[1719364972084,7.2485,137.96,137.9,25.3799]
[1719364972788,7.249,137.95,137.9,25.3799]
[1719364974398,7.2498,137.94,137.87,77.9924]
[1719364974702,7.2498,137.94,137.88,7.4223]
[1719364975208,7.56264156,138.02,137.9,6.2392]
[1719364975415,7.56264156,138.02,137.92,59.2992]
[1719364975706,7.2448,138.03,137.98,15.7107]
[1719364977599,7.2454,138.02,137.98,15.7107]
[1719364977793,7.2458,138.01,137.98,15.7107]
[1719364978390,7.2453,138.02,137.98,15.7107]
[1719364978584,18.1084,138.06,137.95,15.682]
[1719364978585,7.2477,137.98,137.95,15.682]
[1719364978789,136.218,138.06,137.95,15.682]
[1719364978993,7.248,137.97,137.95,15.682]
[1719364979181,7.2484,137.96,137.95,15.682]
[1719364979501,7.248,137.97,137.95,15.682]
[1719364979721,7.2469,138.0,137.95,15.682]
[1719364979878,7.246,138.01,137.95,22.9308]
[1719364980384,7.2453,138.02,137.96,7.2483]
[1719364980799,7.2453,138.02,137.96,8.69300844]
[1719364981102,7.2453,138.02,137.97,7.2478]
[1719364981483,7.2453,138.02,137.96,7.2483]
[1719364981879,24.3406167,138.05,137.95,33.8041]
[1719364982080,7.2469,137.99,137.95,15.682]
[1719364982298,18.1123,138.03,137.95,22.9309]
[1719364982504,7.2476,137.98,137.95,15.682]
[1719364982682,7.55969083,138.07,137.96,24.2312]
[1719364983003,7.2456,138.02,137.96,31.4795]
[1719364983299,7.2456,138.02,137.97,0.17]
[1719364983704,7.2449,138.03,137.97,7.4179]
[1719364984881,7.2449,138.03,137.97,7.2479]
[1719364985403,7.2444,138.04,137.98,7.2473]
[1719364985906,7.2449,138.03,137.97,7.2479]
[1719364986292,7.2449,138.03,137.98,7.2473]
[1719364986696,7.2449,138.03,137.97,7.2477]
[1719364987202,7.55969083,138.07,137.98,21.3594]
[1719364987406,7.2411,138.1,138.05,7.2436]
[1719364987603,7.2411,138.1,138.04,7.2441]
[1719364987900,0.1692828,138.11,138.06,6.0987]
[1719364988107,0.1692828,138.11,138.06,13.3417]
[1719364989083,0.1692828,138.11,138.07,7.4123]
[1719364989708,7.4099828,138.11,138.06,13.3417]
[1719364990217,0.1692828,138.11,138.08,7.2417]
[1719364990378,0.1692828,138.11,138.06,6.0987]
[1719364990998,7.4099828,138.11,138.06,6.0987]
[1719364991286,7.2412,138.1,138.06,6.0987]
[1719364991789,7.4098828,138.11,138.06,6.0987]
[1719364992797,0.1692828,138.11,138.1,7.2411]
[1719364993301,0.1692828,138.11,138.09,25.3452]
[1719364993504,0.1692828,138.11,138.07,7.2426]
[1719364995606,0.1692828,138.11,138.06,31.619]
[1719364995791,0.1692828,138.11,138.06,6.0987]
[1719364996494,7.4098828,138.11,138.06,6.0987]
[1719364996905,0.1692828,138.11,138.06,6.0987]
[1719364997108,0.1692828,138.11,138.1,7.2411]
[1719364997515,0.1692828,138.11,138.1,7.5811]
[1719365000099,0.1692828,138.11,138.1,7.4111]
[1719365000303,0.1692828,138.11,138.1,0.17]
[1719365000904,7.4098828,138.11,138.06,24.2066]
[1719365001323,7.4098828,138.11,138.06,31.4493]
[1719365001324,0.1692828,138.11,138.06,31.4493]
[1719365001831,0.1692828,138.11,138.06,6.0987]
[1719365001994,7.2412,138.1,138.06,6.0987]
[1719365002188,0.1692828,138.11,138.05,15.0907]
[1719365002394,7.2422,138.08,138.03,31.5396]
[1719365002615,7.2422,138.08,138.03,24.2949]
[1719365002896,7.2434,138.06,138.03,6.1837]
[1719365004329,7.2428,138.07,138.03,6.1837]
[1719365004996,7.2428,138.07,138.02,15.4723]
[1719365006126,7.2422,138.08,138.02,22.7172]
[1719365006342,7.2422,138.08,138.03,0.54607368]
[1719365006509,7.2427,138.07,138.03,0.54607368]
[1719365007413,7.2433,138.06,138.01,0.17]
[1719365007619,7.2437,138.05,138.01,0.17]
[1719365007823,7.2437,138.05,138.0,31.4167]
[1719365008066,7.2443,138.04,138.0,6.0551]
[1719365009532,0.1692828,138.11,138.03,18.1117]
[1719365009831,7.2425,138.08,138.03,25.3562]
[1719365010136,0.1692828,138.11,138.03,18.1117]
[1719365010336,0.1692828,138.11,138.04,7.2438]
[1719365010337,7.2414,138.1,138.04,7.2438]
[1719365010538,7.2422,138.08,138.03,25.3563]
[1719365011231,7.2422,138.08,138.03,18.1117]
[1719365011852,7.2428,138.07,138.02,7.4151]
[1719365012147,7.2428,138.07,138.02,0.17]
[1719365012355,38.2712828,138.11,138.02,0.17]
[1719365012538,7.243,138.07,138.02,0.17]
[1719365013426,7.2423,138.08,138.02,0.17]
[1719365013621,7.2423,138.08,138.02,7.78593803]
[1719365013925,7.2423,138.08,138.03,0.17]
[1719365014726,18.1045,138.09,138.0,6.0551]
[1719365014930,7.2449,138.03,138.0,6.0551]
[1719365016267,7.2462,138.01,137.96,22.6379]
[1719365016435,18.1124,138.03,137.96,6.5515]
[1719365016630,20.0,138.02,137.94,7.2493]
[1719365016823,20.0,138.02,137.93,6.5515]
[1719365016824,20.0,138.02,137.95,7.2489]
[1719365017245,20.0,138.02,137.96,7.2482]
[1719365017246,7.2457,138.02,137.96,7.2482]
[1719365017471,7.2449,138.03,137.97,7.2479]
[1719365017761,18.1088,138.06,137.97,7.2479]
[1719365017951,7.2453,138.02,137.96,7.4183]
[1719365019363,7.2449,138.03,137.97,7.4177]
[1719365019564,7.2449,138.03,137.98,0.17]
[1719365020067,18.1088,138.06,137.94,18.1229]
[1719365020232,56.219,138.05,137.93,6.5515]
[1719365020427,74.3293,138.05,137.93,6.5515]
[1719365020625,7.2464,138.0,137.94,7.2494]
[1719365020856,7.2474,137.99,137.93,31.9258]
[1719365021066,7.2469,137.99,137.93,31.9258]
[1719365021231,18.1125,138.03,137.93,24.6759]
[1719365021425,20.0,138.02,137.93,24.6759]
[1719365021656,7.2478,137.98,137.93,31.9258]
[1719365021973,7.2479,137.97,137.93,6.5515]
[1719365022328,7.2475,137.98,137.93,13.8013]
[1719365022527,20.0,138.02,137.93,13.8013]
[1719365022528,7.247,137.99,137.93,13.8013]
[1719365022934,7.2475,137.98,137.93,6.5515]
[1719365023135,7.2481,137.97,137.93,6.5515]
[1719365024264,18.1152,138.01,137.93,6.5515]
[1719365024557,7.2474,137.98,137.93,6.5515]
[1719365025356,7.248,137.97,137.93,6.5515]
[1719365025857,7.248,137.97,137.88,61.83]
[1719365025858,20.0,137.96,137.86,6.0963]
[1719365026066,7.252,137.9,137.86,6.0963]
[1719365026234,7.2522,137.89,137.86,6.0963]
[1719365026442,7.2518,137.9,137.86,6.0963]
[1719365026939,7.2508,137.92,137.86,13.3499]
[1719365028068,7.2511,137.91,137.86,13.3499]
[1719365028455,7.2511,137.91,137.86,6.0963]
[1719365028843,18.1241,137.94,137.86,13.3499]
[1719365029037,20.0,137.96,137.86,6.0963]
[1719365029038,7.2527,137.88,137.86,6.0963]
[1719365029337,20.0,137.96,137.86,6.0963]
[1719365029338,7.2511,137.91,137.86,6.0963]
[1719365030159,20.0,137.96,137.86,6.0963]
[1719365030160,18.1254,137.93,137.86,6.0963]
[1719365030546,7.2523,137.89,137.86,6.0963]
[1719365031164,18.1254,137.93,137.86,6.0963]
[1719365031961,7.2518,137.9,137.86,6.0963]
[1719365034136,7.2512,137.91,137.86,6.0963]
[1719365034440,7.2516,137.9,137.86,6.0963]
[1719365036451,7.2516,137.9,137.85,16.0132]
[1719365036452,7.2521,137.9,137.85,16.0132]
[1719365036658,7.2523,137.89,137.85,16.0132]
[1719365037577,7.2518,137.9,137.85,16.0132]
[1719365038085,7.2521,137.89,137.85,16.0132]
[1719365039063,7.2528,137.88,137.85,16.0132]
[1719365039250,7.2533,137.87,137.85,16.0132]
[1719365039646,7.2537,137.86,137.82,6.1231]
[1719365039845,7.2534,137.87,137.82,6.1231]
[1719365040560,7.2534,137.87,137.82,13.3788]
[1719365040765,7.2527,137.88,137.83,7.2552]
[1719365041843,7.2527,137.88,137.82,31.518]
[1719365042050,18.128,137.91,137.83,7.2552]
[1719365042051,7.2523,137.89,137.83,7.2552]
[1719365042666,15.3555,137.93,137.84,18.3068]
[1719365042847,7.2512,137.91,137.85,7.2538]
[1719365043167,7.2512,137.91,137.86,7.2537]
[1719365043667,7.2512,137.91,137.85,7.2541]
[1719365043866,7.2509,137.92,137.87,21.4156]
[1719365044067,7.2496,137.94,137.89,7.2521]
[1719365044251,7.25,137.93,137.88,7.4226]
[1719365044455,18.1227,137.95,137.87,21.4156]
[1719365044661,7.2512,137.91,137.87,21.4156]
[1719365044957,7.2524,137.89,137.87,21.4156]
[1719365045157,7.2524,137.89,137.87,6.0365]
[1719365045459,36.2388,137.98,137.87,6.0365]
[1719365045460,18.1223,137.96,137.87,6.0365]
[1719365045648,7.2506,137.92,137.87,6.0365]
[1719365045974,7.2502,137.93,137.87,6.0365]
[1719365046157,0.17,137.97,137.88,7.2525]
[1719365046347,7.2505,137.93,137.87,24.169]
[1719365046661,7.2505,137.93,137.87,31.422]
[1719365047357,7.2505,137.93,137.86,0.17]
[1719365047358,7.248,137.97,137.92,7.2505]
[1719365047547,7.248,137.97,137.93,6.5965]
[1719365048468,7.2475,137.98,137.93,13.8463]
[1719365049043,18.1178,137.99,137.93,6.5965]
[1719365049256,18.1206,137.97,137.89,6.4044]
[1719365049464,262.7631057,138.01,137.89,6.4044]
[1719365049663,7.2515,137.91,137.89,6.4044]
[1719365049842,18.1194,137.98,137.89,6.4044]
[1719365050049,7.2501,137.93,137.89,6.4044]
[1719365050459,7.2496,137.94,137.89,6.4044]
[1719365051263,18.1194,137.98,137.89,6.4044]
[1719365051264,7.2505,137.93,137.89,6.4044]
[1719365051571,7.2496,137.94,137.89,6.4044]
[1719365051755,7.2491,137.95,137.89,13.6565]
[1719365052073,269.39796684,138.01,137.89,13.6565]
[1719365052074,287.51316684,138.01,137.89,6.4044]
[1719365052284,7.2484,137.97,137.92,18.1259]
[1719365054379,7.2473,137.99,137.92,18.1259]
[1719365054577,255.2,138.01,137.94,7.2494]
[1719365054773,16.6155,138.06,137.95,74.9506]
[1719365054774,5.63486114,138.06,137.95,74.9506]
[1719365055079,7.2446,138.04,137.98,7.247]
[1719365055383,7.2438,138.05,137.99,7.4168]
[1719365056575,7.2442,138.04,137.99,0.17]
[1719365056789,7.2448,138.03,137.99,0.17]
[1719365057160,18.1085,138.06,137.97,6.5837]
[1719365057489,7.2464,138.0,137.97,6.5837]
[1719365058150,18.1112,138.04,137.97,6.5837]
[1719365058151,7.2459,138.01,137.97,6.5837]
[1719365058351,7.2463,138.0,137.97,6.5837]
[1719365058978,7.2459,138.01,137.97,6.5837]
[1719365060769,7.2465,138.0,137.97,6.5837]
[1719365061958,7.2459,138.01,137.97,6.5837]
[1719365064657,7.2463,138.0,137.97,6.5837]
[1719365065279,18.1135,138.02,137.97,6.5837]
[1719365065577,7.2474,137.98,137.95,15.2469]
[1719365066179,7.2479,137.97,137.95,15.2469]
[1719365066361,7.2475,137.98,137.95,15.2469]
[1719365066558,18.1135,138.02,137.95,15.2469]
[1719365066763,7.247,137.99,137.95,15.2469]
[1719365067364,7.2465,138.0,137.95,15.2469]
[1719365067663,7.2469,137.99,137.95,15.2469]
[1719365068255,18.1104,138.05,137.95,15.2469]
[1719365068461,7.2464,138.0,137.96,0.17]
[1719365069068,7.2459,138.01,137.96,0.17]
[1719365069478,7.2464,138.0,137.95,15.2469]
[1719365069665,7.2473,137.99,137.95,15.2469]
[1719365072676,7.2474,137.98,137.95,15.2469]
[1719365072991,7.2484,137.96,137.95,15.2469]
[1719365073175,18.1136,138.02,137.95,15.2469]
[1719365073376,16.1545,138.03,137.95,15.2469]
[1719365073885,18.1162,138.0,137.94,6.3596]
[1719365074091,7.249,137.95,137.94,6.3596]
[1719365074384,7.2486,137.96,137.94,6.3596]
[1719365074688,7.249,137.95,137.94,6.3596]
[1719365074883,7.2486,137.96,137.94,6.3596]
[1719365075889,7.249,137.95,137.94,6.3596]
[1719365077383,7.2496,137.94,137.91,15.6155]
[1719365078693,7.2501,137.93,137.91,15.6155]
[1719365079802,7.2505,137.92,137.91,15.6155]
[1719365080095,7.2506,137.92,137.9,6.2756]
[1719365081594,7.2511,137.91,137.9,6.2756]
[1719365081768,7.2511,137.91,137.87,22.4248]
[1719365083793,7.2522,137.89,137.87,22.4248]
[1719365083973,36.2477,137.94,137.81,22.1707]
[1719365084181,7.254,137.86,137.81,22.1707]
[1719365084373,7.2533,137.87,137.81,29.427]
[1719365084582,4.38942322,137.92,137.81,40.3111]
[1719365084896,7.2526,137.89,137.83,7.2549]
[1719365085397,7.2528,137.88,137.82,7.2557]
[1719365085702,7.2528,137.88,137.83,0.17]
[1719365086013,7.2522,137.89,137.83,7.4252]
[1719365088796,7.2518,137.9,137.84,7.2547]
[1719365089090,7.2522,137.89,137.83,25.5631]
[1719365089699,7.2527,137.88,137.83,18.308]
[1719365091171,7.2539,137.86,137.81,22.1707]
[1719365092503,7.2548,137.84,137.81,22.1707]
[1719365092897,7.2544,137.85,137.81,22.1707]
[1719365093415,7.2552,137.84,137.81,22.1707]
[1719365093897,7.2558,137.82,137.81,22.1707]
[1719365094290,7.2554,137.83,137.81,22.1707]
[1719365094903,7.2558,137.82,137.81,22.1707]
[1719365095108,7.2558,137.82,137.81,6.4639]
[1719365097206,18.1331,137.87,137.81,6.4639]
[1719365097388,7.2548,137.84,137.81,6.4639]
[1719365100985,18.1331,137.87,137.81,6.4639]
[1719365101400,3.66470336,137.88,137.81,6.4639]
[1719365101601,18.1298,137.9,137.81,6.4639]
[1719365101602,7.2535,137.87,137.82,0.17]
[1719365101917,7.2519,137.9,137.83,16.2884]
[1719365102117,7.2532,137.87,137.83,16.2884]
[1719365102291,7.2538,137.86,137.83,16.2884]
[1719365102492,7.2543,137.85,137.83,16.2884]
[1719365102790,7.2547,137.84,137.83,16.2884]
[1719365103027,7.2539,137.86,137.83,16.2884]
[1719365103913,8.05412658,137.92,137.83,16.2884]
[1719365104505,7.2524,137.89,137.83,23.5433]
[1719365104696,7.2527,137.88,137.83,16.2884]
[1719365104898,7.2532,137.87,137.83,16.2884]
[1719365105093,8.05412658,137.92,137.84,0.17]
[1719365105296,262.76793635,137.94,137.89,7.2517]
[1719365105516,7.2495,137.94,137.9,15.8166]
[1719365105902,7.2502,137.93,137.9,15.8166]
[1719365107291,7.2496,137.94,137.9,15.8166]
[1719365107498,7.2496,137.94,137.91,1.44302713]
[1719365107796,7.2485,137.96,137.91,6.5871]
[1719365107999,7.2485,137.96,137.92,0.17]
[1719365108718,76.94533574,138.01,137.92,53.22]
[1719365108719,7.56303574,138.01,137.92,53.22]
[1719365108901,7.2472,137.99,137.93,7.4199]
[1719365109104,7.2472,137.99,137.94,0.17]
[1719365109303,7.2475,137.98,137.93,0.17]
[1719365110102,7.247,137.99,137.93,7.42]
[1719365110310,7.247,137.99,137.94,0.17]
[1719365110718,7.2465,138.0,137.94,7.4195]
[1719365110898,7.2465,138.0,137.95,16.5792]
[1719365111416,18.1137,138.02,137.95,16.5792]
[1719365111625,7.2476,137.98,137.95,16.5792]
[1719365112215,18.1137,138.02,137.95,16.5792]
[1719365112404,7.2482,137.97,137.95,16.5792]
[1719365115823,7.2478,137.98,137.92,7.4204]
[1719365116018,7.2479,137.97,137.92,0.17]
[1719365116396,7.2479,137.97,137.92,7.4205]
[1719365116700,7.2476,137.98,137.92,7.4205]
[1719365116897,7.248,137.97,137.92,0.17]
[1719365117094,18.1168,138.0,137.92,0.17]
[1719365117095,7.2485,137.96,137.92,0.17]
[1719365117302,7.2491,137.95,137.91,6.6521]
[1719365117497,51.2552,138.02,137.91,6.6521]
[1719365117498,18.1189,137.98,137.91,6.6521]
[1719365117927,7.2498,137.94,137.91,6.6521]
[1719365118442,18.1214,137.96,137.91,6.6521]
[1719365118598,8.05412658,137.98,137.88,15.4792]
[1719365118901,7.2507,137.92,137.88,15.4792]
[1719365119221,7.2512,137.91,137.88,15.4792]
[1719365119522,7.2511,137.91,137.88,15.4792]
[1719365119724,7.2507,137.92,137.88,15.4792]
[1719365121326,8.05412658,137.98,137.88,15.4792]
[1719365121530,8.05412658,137.98,137.92,6.3373]
[1719365121706,18.1153,138.01,137.92,6.3373]
[1719365122024,7.2484,137.96,137.92,6.3373]
[1719365122400,7.2475,137.98,137.93,15.3007]
[1719365122606,7.2477,137.98,137.93,15.3007]
[1719365122805,6.7477,137.98,137.93,15.3007]
[1719365123107,18.1186,137.98,137.93,15.3007]
[1719365123301,18.1186,137.98,137.92,6.3373]
[1719365123631,7.2495,137.94,137.92,6.3373]
[1719365124700,7.2491,137.95,137.92,6.3373]
[1719365124907,7.25,137.94,137.92,6.3373]
[1719365125322,7.25,137.93,137.92,6.3373]
[1719365125636,7.25,137.93,137.9,15.2684]
[1719365125921,18.1217,137.96,137.89,6.6319]
[1719365126132,7.2506,137.92,137.89,6.6319]
[1719365126332,7.2501,137.93,137.89,6.6319]
[1719365126705,7.2509,137.92,137.89,6.6319]
[1719365127003,7.2485,137.96,137.89,6.6319]
[1719365127201,7.2478,137.98,137.92,23.3759]
[1719365128512,7.2479,137.97,137.92,16.1257]
[1719365130506,7.248,137.97,137.92,16.1257]
[1719365131712,7.2485,137.96,137.92,16.1257]
[1719365132225,7.2481,137.97,137.92,16.1257]
[1719365134217,26.16912658,138.01,137.92,16.1257]
[1719365134412,7.248,137.97,137.92,16.1257]
[1719365136334,7.2485,137.96,137.92,16.1257]
[1719365136833,7.2481,137.97,137.92,16.1257]
[1719365137028,8.05412658,138.01,137.92,16.1257]
[1719365137235,0.17,138.0,137.92,16.1257]
[1719365137526,18.1202,137.97,137.92,16.1257]
[1719365137731,7.2496,137.94,137.92,16.1257]
[1719365138609,7.2491,137.95,137.92,16.1257]
[1719365138806,18.1168,138.0,137.92,16.1257]
[1719365139013,7.2482,137.97,137.92,16.1257]
[1719365140221,18.1193,137.98,137.89,24.762]
[1719365140449,7.2498,137.94,137.89,24.762]
[1719365140634,7.25,137.93,137.89,6.6319]
[1719365140930,7.2497,137.94,137.89,6.6319]
[1719365141730,15.7166,138.0,137.89,6.6319]
[1719365141940,7.2526,137.88,137.84,22.8156]
[1719365142139,18.1284,137.91,137.84,22.8156]
[1719365142431,7.2535,137.87,137.84,22.8156]
[1719365142640,7.2526,137.88,137.84,22.8156]
[1719365144340,7.2532,137.87,137.84,6.3378]
[1719365144521,7.2542,137.85,137.84,6.3378]
[1719365144726,7.2542,137.85,137.81,15.454]
[1719365144935,7.2533,137.87,137.81,22.7102]
[1719365145144,7.57262666,137.91,137.81,15.454]
[1719365145327,18.1273,137.92,137.81,15.454]
[1719365145523,7.2525,137.89,137.83,7.2551]
[1719365146240,7.2527,137.88,137.82,25.5649]
[1719365146541,18.1296,137.9,137.81,15.454]
[1719365146929,7.2541,137.86,137.81,15.454]
[1719365147742,7.2533,137.87,137.81,22.7102]
[1719365148241,7.2533,137.87,137.82,0.17]
[1719365148536,18.1296,137.9,137.81,15.454]
[1719365148842,7.2538,137.86,137.81,15.454]
[1719365149829,7.253,137.88,137.82,7.2557]
[1719365150026,7.2535,137.87,137.83,0.17]
[1719365150227,7.2535,137.87,137.81,22.71]
[1719365150429,7.2535,137.87,137.82,0.17]
[1719365150929,15.62593595,137.93,137.84,7.2547]
[1719365151121,7.251,137.92,137.87,23.2722]
[1719365151334,18.6493,137.98,137.89,6.0352]
[1719365151335,18.1204,137.97,137.89,6.0352]
[1719365151544,7.2496,137.94,137.9,0.17]
[1719365151927,7.2491,137.95,137.9,0.17]
[1719365152252,8.05412658,137.98,137.89,6.0352]
[1719365152432,7.2512,137.91,137.89,6.0352]
[1719365153149,18.1215,137.96,137.89,6.0352]
[1719365153343,7.2511,137.91,137.89,6.0352]
[1719365153642,7.2516,137.9,137.89,6.0352]
[1719365153856,7.2523,137.89,137.87,16.0191]
[1719365154037,7.2521,137.89,137.87,16.0191]
[1719365154957,7.2526,137.88,137.87,16.0191]
[1719365155133,18.127,137.92,137.86,6.2107]
[1719365155134,7.2532,137.87,137.86,6.2107]
[1719365155464,7.2532,137.87,137.83,16.641]
[1719365155465,7.2538,137.86,137.83,16.641]
[1719365156139,7.2533,137.87,137.83,16.641]
[1719365156449,7.2528,137.88,137.83,16.641]
[1719365156654,7.2523,137.89,137.83,23.8962]
[1719365156948,7.2527,137.88,137.83,16.641]
[1719365157245,7.2532,137.87,137.83,16.641]
[1719365158649,7.2528,137.88,137.83,16.641]
[1719365159229,52.6597,137.95,137.83,16.641]
[1719365159230,7.2522,137.89,137.83,34.779]
[1719365159425,7.2522,137.89,137.84,0.17]
[1719365159632,7.2518,137.9,137.84,7.4247]
[1719365159831,7.2522,137.89,137.83,42.0341]
[1719365160043,7.2522,137.89,137.83,42.0339]
[1719365160250,7.2522,137.89,137.84,0.17]
[1719365161449,7.2527,137.88,137.84,0.17]
[1719365163270,18.1293,137.9,137.83,16.641]
[1719365164054,7.2538,137.86,137.83,16.641]
[1719365164559,7.2542,137.85,137.83,16.641]
[1719365165868,36.2546,137.92,137.83,16.641]
[1719365166190,7.2547,137.84,137.83,16.641]
[1719365166358,18.132,137.88,137.83,16.641]
[1719365166359,7.2544,137.85,137.83,16.641]
[1719365166558,7.2547,137.84,137.83,16.641]
[1719365166973,18.1348,137.86,137.8,15.2141]
[1719365167176,16.542,137.88,137.78,6.6245]
[1719365167359,18.1371,137.84,137.78,6.6245]
[1719365167566,7.2574,137.79,137.78,6.6245]
[1719365167854,7.2574,137.79,137.77,15.9082667]
[1719365168053,7.2567,137.81,137.77,15.9082667]
[1719365170095,7.2569,137.8,137.77,15.9082667]
[1719365170473,7.2574,137.79,137.77,15.9082667]
[1719365170883,7.257,137.8,137.77,15.9082667]
[1719365171277,7.2558,137.82,137.77,15.9082667]
[1719365171793,18.1361,137.85,137.77,15.9082667]
[1719365171995,7.2569,137.8,137.77,15.9082667]
[1719365172195,7.2579,137.78,137.77,0.6941667]
[1719365175287,18.1443,137.79,137.77,0.6941667]
[1719365175288,7.2574,137.79,137.77,0.6941667]
[1719365175605,7.2573,137.8,137.77,0.6941667]
[1719365175977,7.2574,137.79,137.77,0.6941667]
[1719365177008,7.257,137.8,137.77,0.6941667]
[1719365177317,7.57585218,137.84,137.77,0.6941667]
[1719365177530,7.2565,137.81,137.77,0.6941667]
[1719365177893,7.2569,137.8,137.77,0.6941667]
[1719365178119,7.2579,137.78,137.77,0.6941667]
[1719365180763,7.2572,137.8,137.77,0.6941667]
[1719365181819,7.2574,137.79,137.77,0.6941667]
[1719365182134,7.257,137.8,137.77,0.6941667]
[1719365182496,7.2575,137.79,137.77,0.6941667]
[1719365183427,18.138,137.84,137.77,0.6941667]
[1719365183608,7.2556,137.83,137.77,7.9523667]
[1719365183802,8.05412658,137.84,137.78,13.2862]
[1719365183803,7.2548,137.84,137.78,13.2862]
[1719365184537,5.66944262,137.86,137.79,7.2571]
[1719365185107,7.2544,137.85,137.79,7.2571]
[1719365186043,18.1259,137.93,137.85,6.5681]
[1719365186503,51.9342,137.95,137.85,6.5681]
[1719365186504,296.94409403,137.96,137.87,16.6486]
[1719365186710,7.2504,137.93,137.87,23.9017]
[1719365187128,7.2504,137.93,137.88,0.17]